Cogmind - Beta 15 @@@ ROGUE MODE // 2025.05.22 @ 20:12:02 Player: gorb Result: Destroyed by Y-45 Defender with Heavy Assault Rifle Performance ------------- Evolutions (1) 500 Regions Visited (2) 400 Robots Destroyed (17) 85 Value Destroyed (469) 469 Prototype IDs (0) 0 Alien Tech Used (0) 0 Bonus (0) 0 TOTAL SCORE: 1454 Bonus ------- None Cogmind --------- Core Integrity 0/400 Matter 273/300 Energy 100/100 System Corruption 0% Temperature Cool (0) Movement Core (250) Ox4 Location -9/Materials Parts ------- > --- POWER (1) -------- (None) > --- PROPULSION (4) --- (None) > --- UTILITY (2) ------ Small Storage Unit > --- WEAPON (2) ------- Improved Light Cannon Improved Light Cannon > --- INVENTORY (8) ---- Ion Engine Ion Engine Improved Aluminum Leg Improved Aluminum Leg Flight Unit Flight Unit EM Pulse Gun Datajack Peak State ------------ > --- POWER ------------ Light Nuclear Core > --- PROPULSION ------- Aluminum Leg Aluminum Leg Compact Wheel > --- UTILITY ---------- Small Storage Unit > --- WEAPON ----------- Light Assault Rifle Light Assault Rifle > --- INVENTORY -------- Ion Engine Ion Engine Flight Unit Flight Unit EM Pulse Gun Improved Light Cannon Improved Light Cannon Datajack [Rating: 10] Favorites ----------- Power Ion Engine Engine Ion Engine Power Core Light Nuclear Core Propulsion Aluminum Leg Leg Aluminum Leg Wheel Compact Wheel Utility Small Storage Unit Storage Small Storage Unit Weapon Light Assault Rifle Ballistic Gun Light Assault Rifle Ballistic Cannon Improved Light Cannon Special Melee Weapon Datajack Build | -11 -10 -9 ------- Run | Yrd Mat Mat Slots Evolved 2 | . . 2 Power . | . . . Propulsion 2 | . . 2 Utility . | . . . Weapon . | . . . Parts Attached 13 | 4 3 6 Power 2 | 1 1 . Engine 1 | 1 . . Core 1 | . 1 . Reactor . | . . . Propulsion 5 | 2 . 3 Treads . | . . . Leg 3 | . . 3 Wheel 2 | 2 . . Hover . | . . . Flight . | . . . Utility 1 | 1 . . Device . | . . . Storage 1 | 1 . . Processor . | . . . Hackware . | . . . Protection . | . . . Artifact . | . . . Weapon 5 | . 2 3 Energy Gun . | . . . Energy Cannon . | . . . Ballistic Gun 2 | . 2 . Ballistic Cannon 2 | . . 2 Launcher . | . . . Special Weapon . | . . . Impact Weapon . | . . . Slashing Weapon . | . . . Piercing Weapon . | . . . Special Melee Weapon 1 | . . 1 Unidentified Prototypes . | . . . Parts Lost 8 | . 1 7 Power 1 | . . 1 Propulsion 5 | . 1 4 Utility . | . . . Weapon 2 | . . 2 Highest Loss Streak 2 | . 1 2 To Critical Strikes . | . . . Average Backups 6 | 3 5 7 Power 1 | . 1 2 Propulsion 1 | 1 2 1 Utility . | . . . Weapon 2 | 1 1 2 Tool/Special . | . . . Unused Backups 6 | . . 6 Power 1 | . . 1 Propulsion 4 | . . 4 Utility . | . . . Weapon 1 | . . 1 Tool/Special . | . . . Average Slot Usage (%) 71 | . 83 64 Engine 5 | . 13 . Core 4 | . . 6 Leg 11 | . . 19 Wheel 15 | . 26 8 Storage 12 | . 14 11 Ballistic Gun 19 | . 27 14 Ballistic Cannon 2 | . . 4 Peak Build Rating 10 | 4 7 10 Average Rating 7 | 2 6 8 On Entrance 3 | . 4 7 Naked Turns . | . . . Heaviest Build 13 | 10 12 13 Greatest Support 26 | 26 26 23 Greatest Overweight (x) 4 | . . 4 Average Overweight (x) . | . . . Largest Inventory Capacity 8 | 8 8 8 Average Capacity 7 | 6 8 8 Most Carried 8 | 6 7 8 Average Carried 6 | 3 4 7 Final Capacity 8 | 8 8 8 Final Carried 8 | 6 7 8 Class Distribution -------------------- 100% | Mutant Dominant Class ---------------- Mutant | -10/Materials Mutant | -9/Materials Resources | -11 -10 -9 ----------- Run | Yrd Mat Mat Matter Collected 418 | 218 98 102 Remotely . | . . . Salvage Created 475 | . 169 306 Parts 35 | . 10 25 Haulers Intercepted . | . . . Recyclers Shooed . | . . . Parts Field Recycled . | . . . Retrieved Matter . | . . . Parts Self-Destructed . | . . . Prevented . | . . . Kills | -11 -10 -9 ------- Run | Yrd Mat Mat Combat Hostiles Destroyed 16 | . 4 12 Guns 11 | . 4 7 Cannons 1 | . . 1 AOE 4 | . . 4 Classes Destroyed 4 | . 1 3 Watcher 1 | . . 1 Swarmer 7 | . . 7 Grunt 5 | . 4 1 Sentry 4 | . . 4 Best Kill Streak 5 | . 2 5 Combat Bots Only 4 | . 2 4 Max Kills in Single Turn 4 | . 1 4 Gunslinging . | . . . Exploded 4 | . . 4 Melee . | . . . Uniques/NPCs Destroyed . | . . . Combat | -11 -10 -9 -------- Run | Yrd Mat Mat Hostile Shots Fired 141 | . 35 106 Missed 39 | . 11 28 Hits 102 | . 24 78 Projectile 102 | . 24 78 Critical Strikes 3 | . . 3 Damage Taken 1429 | . 287 1142 Core 551 | . 141 410 Absorbed by Shields . | . . . Core Remaining (%) 71 | 100 43 . Volleys Fired 69 | . 25 44 Largest 2 | . 2 2 Hottest 66 | . 40 66 Shots Fired 107 | . 50 57 Gun 95 | . 50 45 Cannon 12 | . . 12 Launcher . | . . . Special . | . . . Kinetic 107 | . 50 57 Thermal . | . . . Explosive . | . . . Electromagnetic . | . . . Robot Hit Streak 13 | . 7 13 Robot Miss Streak 5 | . 3 5 Penetration Max . | . . . Secondary Targets 1 | . . 1 Max Gunslinging Chain 1 | . . 1 Shots Hit Robots 74 | . 34 40 Core Hits 31 | . 11 20 Critical Kills . | . . . Critical Parts Destroyed . | . . . Critical Strikes . | . . . Melee Attacks . | . . . Impact . | . . . Slashing . | . . . Piercing . | . . . Sneak Attacks . | . . . Combat Hostiles . | . . . Follow-up Attacks . | . . . Damage Inflicted 1273 | . 270 1003 Guns 554 | . 270 284 Cannons 152 | . . 152 Explosions 563 | . . 563 Melee . | . . . Ramming 4 | . . 4 Kinetic 706 | . 270 436 Thermal . | . . . Explosive 563 | . . 563 Electromagnetic . | . . . Impact . | . . . Slashing . | . . . Piercing . | . . . Highest Corruption . | . . . Average Corruption . | . . . Corruption Purged . | . . . Corruption Blocked . | . . . Overload Shots . | . . . Overflow Damage 205 | . . 205 Projectiles . | . . . Explosions 205 | . . 205 Melee . | . . . Knockbacks . | . . . Impact . | . . . Kinetic . | . . . Secondary . | . . . Self-Inflicted Damage 175 | . . 175 Shots 2 | . . 2 Rammed . | . . . Targets Rammed 1 | . . 1 Kicked 1 | . . 1 Crushed . | . . . Highest Temperature 33 | . 30 33 Average Temperature 10 | . 9 11 Received Heat Transfer 483 | . 153 330 Siege Activations . | . . . Martial Activations . | . . . Shielding Activations . | . . . Robots Disrupted . | . . . Combat Hostiles . | . . . Robots Corrupted . | . . . Combat Hostiles . | . . . Parts Fried . | . . . Impact Corruptions . | . . . Robots Melted . | . . . Combat Hostiles . | . . . Parts Melted . | . . . Heat Transferred . | . . . Parts Sabotaged . | . . . Parts Stolen . | . . . Parts Stripped . | . . . Power Chain Reactions . | . . . Alert | -11 -10 -9 ------- Run | Yrd Mat Mat Maximum Alert Level 1 | . . 1 Low Security (%) 98 | 100 100 97 Level 1 1 | . . 2 Level 2 . | . . . Level 3 . | . . . Level 4 . | . . . Level 5 . | . . . High Security . | . . . Max Security . | . . . Peak Influence 241 | . 50 241 Initial 12 | . . 12 Average 40 | . 12 63 Influence Increases 594 | . 131 463 Destroy 0b10 Robot/C 320 | . 80 240 Destroy 0b10 Robot/NC 5 | . . 5 Destroy Leader 102 | . 30 72 Successful Hack 18 | . 6 12 Disable Machine 30 | . . 30 Destroy Structure 44 | . . 44 Partial Spotted 15 | . 15 . Lose Combat Pursuer 60 | . . 60 Influence Decreases 363 | . 101 262 Entered New Map 18 | . . 18 Time Decay 255 | . 81 174 Lost Part 80 | . 10 70 Lost Ally 10 | . 10 . Squads Dispatched 5 | . 3 2 Investigation 2 | . . 2 Extermination . | . . . Reinforcement 3 | . 3 . Assault . | . . . Garrison . | . . . Intercept . | . . . Searches Triggered . | . . . Construction Impeded . | . . . Haulers Reinforced . | . . . Active Scanning Responses . | . . . Cargo Convoy Interrupts . | . . . Stealth | -11 -10 -9 --------- Run | Yrd Mat Mat Distress Signals 4 | . 1 3 Communications Jammed . | . . . Distress Signals . | . . . Times Spotted 32 | . 11 21 Peak Tracking Total 10 | . 4 10 Tactical Retreats 4 | . . 4 Traps | -11 -10 -9 ------- Run | Yrd Mat Mat Traps Triggered 1 | . . 1 Indirectly . | . . . Trap Hack Attempts . | . . . Triggered . | . . . Disarmed . | . . . Reprogrammed . | . . . Reused . | . . . Traps Extracted . | . . . Installed . | . . . Triggered . | . . . Machines | -11 -10 -9 ---------- Run | Yrd Mat Mat Machines Disabled 2 | . . 2 Max in Single Turn 2 | . . 2 Machines Repaired . | . . . Machines Dismantled . | . . . Machines Sabotaged . | . . . Overloaded Fab Kills . | . . . Hacking | -11 -10 -9 --------- Run | Yrd Mat Mat Machines Accessed 4 | . 1 3 Terminals 4 | . 1 3 Fabricators . | . . . Repair Stations . | . . . Recycling Units . | . . . Scanalyzers . | . . . Garrison Access . | . . . Total Hacks 13 | . 4 9 Successful 6 | . 2 4 Failed 7 | . 2 5 Catastrophic 1 | . 1 . Database Lockouts . | . . . Manual 13 | . 4 9 Terminals 13 | . 4 9 Fabricators . | . . . Repair Stations . | . . . Recycling Units . | . . . Scanalyzers . | . . . Garrison Access . | . . . Terminal Hacks 1 | . . 1 Branch Access Points 1 | . . 1 Fabricator Hacks . | . . . Repair Station Hacks . | . . . Recycling Unit Hacks . | . . . Scanalyzer . | . . . Garrison Access Hacks . | . . . Unauthorized Hacks 5 | . 2 3 Terminals 5 | . 2 3 Assimilate 2 | . 1 1 Botnet 3 | . 1 2 Fabricators . | . . . Repair Stations . | . . . Recycling Units . | . . . Scanalyzers . | . . . Garrison Access . | . . . Data Cores Recovered . | . . . Used . | . . . Hacking Detections 3 | . 1 2 Full Trace Events 2 | . . 2 Feedback Events . | . . . Feedback Blocked . | . . . Robot Schematics Acquired . | . . . Robots Built . | . . . Authchips . | . . . Time . | . . . Total Robot Build Rating . | . . . Part Schematics Acquired . | . . . Parts Built . | . . . Authchips . | . . . Time . | . . . Total Part Build Rating . | . . . Parts Repaired . | . . . Time . | . . . Parts Recycled . | . . . Recycled Matter . | . . . Retrieved Matter . | . . . Retrieved Components . | . . . Parts Scanalyzed . | . . . Part Schematics Acquired . | . . . Parts Damaged . | . . . Bothacking | -11 -10 -9 ------------ Run | Yrd Mat Mat Used RIF Installer . | . . . Robots Hacked . | . . . Non-combat . | . . . Combat . | . . . Robot Hacks Applied . | . . . Relay Couplers Released . | . . . Fabnet Peak Effective % . | . . . Robots Rewired . | . . . Allies Hacked . | . . . Hacks Repelled . | . . . Allies | -11 -10 -9 -------- Run | Yrd Mat Mat Total Allies 1 | . 1 . Largest Group 1 | . 1 . Highest-Rated Group 10 | . 10 . Highest-Rated Ally 10 | . 10 . Total Orders . | . . . Ally Attacks . | . . . Total Damage . | . . . Kills . | . . . Allies Corrupted . | . . . Allies Melted . | . . . Intel | -11 -10 -9 ------- Run | Yrd Mat Mat Active Infowar (turns) . | . . . Robot Analysis Total . | . . . Derelict Logs Recovered . | . . . Drone Launches . | . . . Drone Recoveries . | . . . Exploration | -11 -10 -9 ------------- Run | Yrd Mat Mat Turns Passed 827 | 48 307 472 Spaces Moved 602 | 42 260 300 Core 11 | 9 . 2 Treads . | . . . Legs 298 | . . 298 Wheels 293 | 33 260 . Hover . | . . . Flight . | . . . Fastest Speed 50 | 50 90 120 Average Speed 106 | 81 90 122 Slowest Speed 250 | 90 100 250 Overloaded Moves . | . . . Propulsion Burnouts . | . . . Robots Hopped . | . . . Potential Cave-ins . | . . . Cave-ins Triggered . | . . . Exploration Rate (%) 25 | 3 44 29 Regions Visited 2 Branch Regions . Pre-discovered Areas . | . . . Known Exits Taken . | . . . Unknown Exits Taken 2 | 1 1 . Scrap Searched . | . . . Spaces Dug . | . . . Terrain Destroyed 46 | . . 46 Melee . | . . . Projectile . | . . . AOE 46 | . . 46 Terrain Rammed . | . . . Walls Destroyed . | . . . Machines Disabled . | . . . Actions | -11 -10 -9 --------- Run | Yrd Mat Mat Total 702 | 55 290 357 Wait . | . . . Move 600 | 41 259 300 Hop . | . . . Pick Up 18 | 10 3 5 Fast Attach 1 | . . 1 Attach 11 | 4 2 5 Detach 1 | . . 1 Swap 1 | . 1 . Drop . | . . . Fire 69 | . 25 44 Melee . | . . . Ram . | . . . Kick 1 | . . 1 Crush . | . . . Escape Stasis . | . . . Rewire . | . . . Trap . | . . . Miscellaneous . | . . . Route ------- -11/Scrapyard -10/Materials -9/Materials (discovered 1 exit: Min) History --------- Turn | Location | Event 3 | -11/Scrapyard | Discovered new exit (range 15) 49 | -11/Scrapyard | Entered Materials 318 | -10/Materials | Build established: Mutant 323 | -10/Materials | Core integrity fell below 50% 351 | -10/Materials | Discovered new exit (range 6) 356 | -10/Materials | Entered another Materials area 356 | -9/Materials | Evolved 2 slots: Propulsion x2 733 | -9/Materials | Core integrity fell below 50% 776 | -9/Materials | Identified exit to Mines 819 | -9/Materials | Core integrity fell below 20% 828 | -9/Materials | Destroyed by Y-45 Defender with Heavy Assault Rifle Last Messages --------------- Nuclear Reactor explodes. Destroyed Flight Unit. S-10 Pest destroyed. Destroyed Lgt. Ion Engine. Destroyed Lgt. Assault Rifle. Destroyed Lgt. Ion Engine. S-10 Pest destroyed. Destroyed Flight Unit. Destroyed Lgt. Assault Rifle. S-10 Pest destroyed. Nuclear Reactor explodes. S-10 Pest destroyed. U-05 Engineer lays Concrete. W-16 Scout destroyed. U-05 Engineer builds a Wall. The unstable cave ceiling collapses. Imp. Aluminum Leg destroyed. U-05 Engineer lays Concrete. U-05 Engineer builds a Wall. Acquired 1 matter. Map ----- +----------------------------------------------------+ | | | | | | | | | | | ????????????????????????????????????????????? | | ????????????????????????????????????????????? | | ????????????????????????????????????????????? | | ????????????????????????????????????????????? | | ????????????????????????????????????????????? | | ????????????????????????????????????????????? | | ?????????????????????????####???????????????? | | ??????????????????? ????? ???????????????? | | ?????????????????## ????? ? #???????????? | | ???????????????## ??# #???????????? | | ???????????????? ??# """ """ #???????????? | | ???????????????? ?+ """ """ #???????????? | | ???????????????? ?# """ """ #???????????? | | ????????????????? ?# ###?????????? | | ?????????????????# ?# ##????????? | | ?????????????????# ??#+# ###??????? | | ?????????????????+ ??# # ###????? | | ?????????????????# ??#u# * #????? | | ?????????????????# ### # = #????? | | ?????????????????# = #????? | | ?????????????????# Y@ * #????? | | ?????????????????# % #????? | | ?????????????????## %%g # ##????? | | ??????????????????# % ##?????? | | ??????????????????# ?????? | | ??????????????????##### g ""????? | | ??????????????????????# gr # ""????? | | ??????????????????????# # "?????? | | ??????????????????##### ##? ?????? | | ??????????????? ! #??? "?????? | | ?????????????? u #??????????? | | ??????????????? ### #??????????? | | ???????????????"""""" ### r##?????????? | | ????????????????""""" ## ##+###????? | | ?????????????????"""" ## #????? | | ??????????????????""" ## T #????? | | ???????????????????"" ## #????? | | ??????????????????? ## ######????? | | ??????????????????? #### ###?????????? | | ??????????????????##### ##??# #???????????? | | ??????????????????????# #####+#######?????? | | ??????????????????????# # #?????? | | ??????????????????????# # """ #?????? | | ??????????????????????# # """ #?????? | | ??????????????????????# # """ #?????? | +----------------------------------------------------+ Best States ------------- Heat Dissipation 28 Energy Generation 14 Energy Capacity 250 Matter Stores 300 Matter Capacity 300 Sight Range 16 Terrain Scan Density 10 Evasion (%) 55 Item Schematics ----------------- None Robot Schematics ------------------ None Fabricated ------------ Nothing Repaired ---------- Nothing Alien Tech Used ----------------- None Achievements -------------- None Challenges ------------ None Game ------ Seed ArmageddonConcussiveHumpback Manual? 0 Play Time 00:11:42 Cumulative 38.6 hours Start 2025.05.22 @ 20:01:31 End 2025.05.22 @ 20:12:02 Sessions 1 Manual Loads 0 Difficulty Rogue Special Mode None Game No. 63 Rogue 61 Adventurer 0 Explorer 2 Win Type - Total 0 Types 0/0/0/0/0/0/0/0/0/0 Lore% 24 Gallery% 27 Achievement% 28 Wizard Run 0 Options --------- Layout 1 ASCII 0 Keyboard 0 Movement Mouse Keybinds 0 Fullscreen 1 Font 24/Smallcaps Map View 50x35 Zoom Use 0% Tactical HUD 0 Map Filters NONE Filters NONE Steam 1 RUN: 7b7bf784-a23e-4ff6-8dc9-766ad8d20bb1